bitfinex/quotes_SOLUSD_20250802
["timestamp","ask_amount","ask_price","bid_price","bid_amount"]
[1754095669974,10.04942074,164.32,164.29,0.06]
[1754095670294,10.01942074,164.3,164.29,0.06]
[1754095670498,26.80410471,164.3,164.29,0.06]
[1754095670807,41.1637314,164.32,164.29,0.06]
[1754095671101,36.01942074,164.31,164.29,0.06]
[1754095671599,10.04942074,164.32,164.29,0.06]
[1754095672008,0.03,164.32,164.29,0.06]
[1754095672173,10.04942074,164.32,164.29,0.06]
[1754095672490,10.01942074,164.3,164.29,0.06]
[1754095672695,26.80410471,164.31,164.29,0.06]
[1754095672878,16.78468397,164.31,164.29,0.06]
[1754095673223,26.80410471,164.31,164.29,0.06]
[1754095673779,32.89026972,164.31,164.29,0.06]
[1754095674520,53.07410471,164.3,164.29,0.06]
[1754095674675,32.20164823,164.3,164.29,0.06]
[1754095675106,58.20164823,164.3,164.29,0.06]
[1754095675374,57.93164823,164.3,164.29,0.06]
[1754095675597,52.80410471,164.3,164.29,0.06]
[1754095675817,58.89053197,164.3,164.29,0.06]
[1754095675984,32.89053197,164.3,164.29,0.06]
[1754095676614,38.28807549,164.3,164.29,0.06]
[1754095676778,33.16053197,164.3,164.29,0.06]
[1754095678220,26.0,164.3,164.29,0.06]
[1754095678392,36.01942074,164.3,164.29,0.06]
[1754095678601,63.09352545,164.3,164.29,0.06]
[1754095678782,53.07410471,164.3,164.29,0.06]
[1754095679986,59.16053197,164.3,164.29,0.06]
[1754095680186,64.28300862,164.3,164.29,0.06]
[1754095680829,16.78468397,164.29,164.27,0.06]
[1754095680995,77.38585663,164.28,164.27,0.06]
[1754095681195,77.65585663,164.28,164.27,0.06]
[1754095681409,88.51468397,164.28,164.27,0.06]
[1754095681725,98.53410471,164.28,164.27,0.06]
[1754095681890,78.62127295,164.28,164.27,0.06]
[1754095682089,16.78468397,164.27,164.24,1e-08]
[1754095682289,52.80410471,164.25,164.24,1e-08]
[1754095682517,16.78468397,164.24,164.22,0.06]
[1754095682823,52.80410471,164.23,164.18,0.06]
[1754095683015,26.80410471,164.19,164.18,0.06]
[1754095683186,72.24410471,164.19,164.18,0.06]
[1754095683386,42.78468397,164.19,164.18,0.06]
[1754095683607,98.51410471,164.19,164.18,0.06]
[1754095683817,72.51410471,164.19,164.18,0.06]
[1754095684121,16.78468397,164.15,164.13,0.2]
[1754095684422,72.34410471,164.14,164.13,0.2]
[1754095685309,45.54,164.14,164.13,0.2]
[1754095685513,10.01942074,164.14,164.13,0.2]
[1754095685745,10.01942074,164.15,164.13,0.87]
[1754095686239,10.01942074,164.15,164.13,0.2]
[1754095686408,10.01942074,164.15,164.14,0.67]
[1754095686824,36.01942074,164.16,164.14,0.67]
[1754095687038,26.0,164.16,164.14,0.67]
[1754095687246,45.52,164.17,164.15,0.67]
[1754095687541,26.80410471,164.2,164.16,0.67]
[1754095687750,10.01942074,164.18,164.14,0.67]
[1754095687913,26.80410471,164.2,164.15,10.01942074]
[1754095688115,32.89437051,164.2,164.16,0.67]
[1754095688434,26.80410471,164.2,164.17,0.67]
[1754095688636,22.87296403,164.25,164.18,0.67]
[1754095688939,10.01942074,164.22,164.18,0.67]
[1754095689240,10.01942074,164.23,164.18,10.68942074]
[1754095689542,10.01942074,164.23,164.19,0.67]
[1754095690725,10.01942074,164.2,164.16,0.67]
[1754095691040,10.01942074,164.2,164.17,0.67]
[1754095692957,26.80410471,164.18,164.13,0.87]
[1754095693126,10.01942074,164.16,164.14,0.67]
[1754095694479,16.78468397,164.18,164.14,0.67]
[1754095694651,36.01942074,164.2,164.15,10.68942074]
[1754095694833,36.01942074,164.2,164.16,10.68942074]
[1754095694834,26.0,164.2,164.16,10.68942074]
[1754095695030,45.5,164.21,164.17,0.67]
[1754095695229,45.5,164.21,164.18,10.01942074]
[1754095695426,10.01942074,164.23,164.19,0.67]
[1754095695665,10.01942074,164.24,164.2,0.67]
[1754095695958,16.10818727,164.24,164.18,10.01942074]
[1754095696171,16.10818727,164.24,164.2,0.67]
[1754095696370,10.01942074,164.23,164.18,10.68942074]
[1754095696656,10.01942074,164.23,164.18,0.67]
[1754095696834,10.01942074,164.23,164.18,10.68942074]
[1754095697039,16.10850911,164.23,164.18,10.68942074]
[1754095698360,16.10850911,164.23,164.15,0.67]
[1754095698361,10.01942074,164.19,164.15,0.67]
[1754095698529,36.01942074,164.2,164.15,10.68942074]
[1754095698860,10.01942074,164.22,164.17,10.01942074]
[1754095699162,10.01942074,164.22,164.18,0.67]
[1754095699358,10.01942074,164.22,164.19,0.67]
[1754095699735,16.10881544,164.22,164.19,0.67]
[1754095700447,10.01942074,164.2,164.16,0.67]
[1754095700844,62.26468397,164.22,164.17,0.67]
[1754095701053,72.28410471,164.22,164.18,0.67]
[1754095701630,55.49942074,164.22,164.19,0.67]
[1754095701835,55.49942074,164.22,164.2,0.67]
[1754095702269,45.48,164.22,164.2,0.67]
[1754095702837,45.48,164.22,164.13,15.43182842]
[1754095703041,10.01942074,164.21,164.16,10.68942074]
[1754095703244,45.48,164.22,164.17,10.68942074]
[1754095703544,55.49942074,164.22,164.18,0.67]
[1754095704955,16.78468397,164.2,164.16,0.06]
[1754095705158,10.01942074,164.2,164.16,0.06]
[1754095705551,10.01942074,164.2,164.16,0.73]
[1754095705861,16.78468397,164.21,164.16,0.73]
[1754095706064,10.01942074,164.21,164.17,0.67]
[1754095706947,16.10926909,164.21,164.17,0.67]
[1754095707155,10.01942074,164.21,164.17,0.67]
[1754095707365,26.0,164.23,164.18,0.67]
[1754095707565,36.01942074,164.23,164.19,0.67]
[1754095707944,45.5,164.24,164.2,0.67]
[1754095708149,10.04942074,164.26,164.21,0.67]
[1754095708355,10.04942074,164.26,164.22,0.67]
[1754095709073,10.04942074,164.26,164.18,6.09077118]
[1754095709074,10.01942074,164.24,164.19,0.67]
[1754095709444,10.01942074,164.24,164.2,0.67]
[1754095710256,10.01942074,164.22,164.16,6.15158895]
[1754095710563,26.80410471,164.23,164.18,10.68942074]
[1754095710772,10.01942074,164.23,164.19,0.67]
[1754095711085,10.01942074,164.23,164.16,6.82158895]
[1754095711258,10.01942074,164.22,164.17,16.78032141]
[1754095711458,10.01942074,164.23,164.18,0.67]
[1754095711667,10.01942074,164.23,164.17,16.11032141]
[1754095711668,10.01942074,164.23,164.19,0.67]
[1754095712274,71.46,164.25,164.2,10.68942074]
[1754095712478,10.04942074,164.26,164.21,10.68942074]
[1754095712645,0.03,164.26,164.22,10.68942074]
[1754095712979,0.03,164.26,164.23,0.67]
[1754095713859,10.28942074,164.25,164.2,10.01942074]
[1754095714064,10.01942074,164.24,164.19,16.1098279]
[1754095714265,16.78468397,164.23,164.16,24.4458973]
[1754095714584,16.78468397,164.23,164.17,10.68942074]
[1754095714585,10.01942074,164.22,164.17,10.68942074]
[1754095714784,10.01942074,164.22,164.18,0.67]
[1754095715468,10.01942074,164.22,164.17,16.11060985]
[1754095715687,10.01942074,164.22,164.19,0.67]
[1754095716070,22.90284681,164.26,164.21,10.01942074]
[1754095716282,22.90284681,164.26,164.22,0.67]
[1754095716601,32.92226755,164.26,164.22,0.67]
[1754095716805,26.83410471,164.26,164.2,10.68942074]
[1754095717319,16.81468397,164.26,164.22,10.01942074]
[1754095717604,0.03,164.26,164.22,16.108647]
[1754095717782,0.03,164.26,164.23,0.67]
[1754095718320,0.3,164.26,164.2,0.67]
[1754095718503,10.04942074,164.26,164.21,10.01942074]
[1754095718807,10.04942074,164.26,164.21,10.68942074]
[1754095719195,10.01942074,164.24,164.18,10.01942074]
[1754095719497,10.01942074,164.24,164.19,10.68942074]
[1754095719706,16.37806845,164.25,164.2,10.68942074]
[1754095720000,10.01942074,164.25,164.2,10.68942074]
[1754095720190,6.11798783,164.26,164.18,6.09060638]
[1754095720191,0.03,164.26,164.22,10.01942074]
[1754095720567,0.03,164.26,164.23,0.67]
[1754095721213,0.03,164.26,164.22,10.01942074]
[1754095721381,0.03,164.26,164.22,10.68942074]
[1754095721570,0.03,164.26,164.22,0.67]
[1754095721777,10.01942074,164.25,164.2,16.77943254]
[1754095722214,10.01942074,164.25,164.21,0.67]
[1754095722888,10.04942074,164.26,164.21,10.01942074]
[1754095723089,10.04942074,164.26,164.22,0.67]
[1754095723317,0.03,164.26,164.23,10.68942074]
[1754095723526,0.03,164.26,164.24,0.67]
[1754095725004,0.03,164.26,164.21,0.67]
[1754095725329,0.03,164.26,164.22,0.67]
[1754095725330,0.03,164.25,164.22,0.67]
[1754095725717,0.03,164.25,164.21,10.01942074]
[1754095726400,0.03,164.25,164.21,0.67]
[1754095726996,10.01942074,164.22,164.18,0.73]
[1754095727208,26.0,164.22,164.19,0.67]
[1754095727928,6.11839562,164.25,164.18,16.17021447]
[1754095728105,42.13781636,164.25,164.2,10.68942074]
[1754095728431,42.13781636,164.25,164.21,0.67]
[1754095728805,0.03,164.25,164.22,0.67]
[1754095729318,0.03,164.25,164.23,0.67]
[1754095731145,0.27,164.24,164.18,0.73]
[1754095731431,0.03,164.25,164.2,10.68942074]
[1754095731432,10.04942074,164.25,164.2,10.68942074]
[1754095731644,10.04942074,164.25,164.18,6.15086964]
[1754095731645,0.03,164.25,164.21,10.68942074]
[1754095731841,0.03,164.25,164.21,10.01942074]
[1754095732009,0.03,164.25,164.22,0.67]
[1754095732403,0.03,164.25,164.21,10.01942074]
[1754095732604,0.03,164.25,164.23,0.67]
[1754095733616,0.03,164.25,164.24,0.67]
[1754095734205,0.03,164.25,164.22,0.67]
[1754095735204,10.01942074,164.23,164.18,0.06]
[1754095735409,10.01942074,164.21,164.18,0.73]
[1754095735849,10.01942074,164.2,164.18,0.73]
[1754095737253,26.0,164.19,164.18,0.06]
[1754095737434,36.01942074,164.19,164.18,0.06]
[1754095738950,42.10992564,164.19,164.18,0.06]
[1754095739451,59.16460961,164.19,164.18,0.06]
[1754095739640,87.62992564,164.19,164.18,0.06]
[1754095740556,36.01942074,164.19,164.18,0.06]
[1754095741369,26.0,164.19,164.18,0.06]
[1754095741567,36.01942074,164.19,164.18,0.06]
[1754095743426,51.62983242,164.21,164.18,0.72]
[1754095743627,55.55942074,164.21,164.18,0.72]
[1754095743858,10.01942074,164.23,164.19,0.66]
[1754095744161,10.01942074,164.23,164.2,0.66]
[1754095745376,51.58878296,164.24,164.2,0.66]
[1754095745546,10.01942074,164.23,164.2,0.66]
[1754095745870,0.03,164.25,164.21,0.66]
[1754095746054,10.01942074,164.24,164.21,0.66]
[1754095746477,0.03,164.23,164.21,0.66]
[1754095746975,10.01942074,164.22,164.18,0.06]
[1754095747180,71.82,164.23,164.18,0.72]
[1754095747479,0.03,164.23,164.19,0.66]
[1754095747684,0.03,164.23,164.21,10.01942074]
[1754095747852,0.03,164.23,164.22,0.66]
[1754095748472,0.03,164.23,164.2,0.66]
[1754095748979,36.01942074,164.21,164.18,0.06]
[1754095749286,45.57,164.23,164.19,0.66]
[1754095749446,45.57,164.23,164.2,0.66]
[1754095749447,55.58942074,164.23,164.2,0.66]
[1754095749878,10.01942074,164.21,164.18,0.72]
[1754095751080,10.01942074,164.19,164.18,0.06]
[1754095751281,5.14737125,164.23,164.18,0.06]
[1754095751484,10.01942074,164.22,164.19,0.66]
[1754095752090,16.78468397,164.22,164.18,0.06]
[1754095752267,10.01942074,164.21,164.18,0.06]
[1754095753271,26.80410471,164.19,164.18,0.06]
[1754095753478,6.08979563,164.21,164.18,0.06]
[1754095753479,5.11737125,164.22,164.18,0.06]
[1754095753777,0.03,164.23,164.19,10.67942074]
[1754095753983,0.03,164.23,164.2,0.66]
[1754095754487,0.03,164.23,164.21,0.66]
[1754095755779,0.03,164.23,164.22,0.66]
[1754095756367,0.03,164.23,164.22,10.67942074]
[1754095757682,0.03,164.23,164.22,0.66]
[1754095757879,0.03,164.23,164.22,16.76881301]
[1754095758391,0.03,164.23,164.22,0.66]
[1754095758580,0.03,164.23,164.22,6.74939227]
[1754095758890,0.03,164.23,164.22,16.76881301]
[1754095760416,0.03,164.23,164.22,106.36881301]
[1754095762185,0.03,164.23,164.22,96.34939227]
[1754095762512,0.03,164.23,164.22,106.36881301]
[1754095764388,0.03,164.23,164.21,51.68968701]
[1754095764592,0.03,164.23,164.22,10.67942074]
[1754095765617,0.03,164.23,164.22,16.76881301]
[1754095766294,0.03,164.23,164.22,106.36881301]
[1754095766917,1e-08,164.23,164.22,106.36881301]
[1754095767231,1e-08,164.24,164.22,123.7624362]
[1754095767522,0.03,164.32,164.24,22.87333472]
[1754095767707,0.03,164.32,164.31,10.01942074]
[1754095768298,0.03,164.32,164.3,10.01942074]
[1754095768498,0.03,164.32,164.26,0.66]
[1754095768706,0.03,164.32,164.31,10.01942074]
[1754095770403,0.03,164.32,164.31,16.10547758]
[1754095770603,0.03,164.32,164.31,0.69]
[1754095770805,0.03,164.32,164.31,10.70942074]
[1754095771898,0.03,164.32,164.31,56.22942074]
[1754095772412,0.03,164.32,164.31,62.31547758]
[1754095772616,0.03,164.32,164.31,151.91547758]
[1754095772811,0.03,164.32,164.31,52.29605684]
[1754095773116,0.03,164.32,164.31,62.29547758]
[1754095776923,0.03,164.32,164.31,52.27605684]
[1754095777119,0.03,164.32,164.31,62.29547758]
[1754095777635,1e-08,164.32,164.31,62.29547758]
[1754095777809,0.1,164.34,164.33,26.0]
[1754095778010,0.1,164.36,164.33,36.01942074]
[1754095778319,0.1,164.36,164.35,10.01942074]
[1754095778508,0.1,164.36,164.35,16.10399634]
[1754095778705,0.1,164.36,164.35,16.79399634]
[1754095779333,0.1,164.41,164.36,16.78468397]
[1754095779640,0.1,164.41,164.39,10.01942074]
[1754095779823,0.1,164.41,164.39,55.43942074]
[1754095780008,0.1,164.41,164.39,56.12942074]
[1754095780616,0.1,164.41,164.39,62.21251581]
[1754095781843,0.1,164.41,164.39,61.52251581]
[1754095783813,0.1,164.41,164.39,56.08942074]
[1754095784616,0.1,164.41,164.39,62.17251581]
[1754095785738,0.1,164.41,164.39,51.46309507]
[1754095785919,0.1,164.41,164.39,61.48251581]
[1754095786924,0.1,164.41,164.39,45.38]
[1754095787133,0.1,164.41,164.39,62.17251581]
[1754095787728,0.1,164.41,164.39,51.46309507]
[1754095788118,0.1,164.41,164.39,61.48251581]
[1754095788946,0.1,164.41,164.39,55.39942074]
[1754095789244,0.1,164.41,164.37,55.35942074]
[1754095789417,0.1,164.41,164.37,56.04942074]
[1754095789833,0.1,164.41,164.37,45.34]
[1754095790066,0.1,164.41,164.38,10.70942074]
[1754095790237,0.1,164.41,164.39,55.33942074]
[1754095790933,0.1,164.41,164.39,62.11251581]
[1754095793954,0.1,164.41,164.39,62.07251581]
[1754095794652,0.1,164.41,164.39,51.36309507]
[1754095794852,0.1,164.41,164.39,45.28]
[1754095795052,10.11942074,164.41,164.36,100.30942074]
[1754095795258,0.37,164.4,164.37,45.26]
[1754095795967,10.28942074,164.39,164.37,45.26]
[1754095796266,10.28942074,164.39,164.36,45.24]
[1754095796772,0.27,164.38,164.35,45.24]
[1754095797649,10.01942074,164.39,164.35,45.24]
[1754095797854,0.27,164.38,164.35,45.24]
[1754095798088,0.27,164.38,164.34,6.0846394]
[1754095798089,0.27,164.37,164.34,45.22]
[1754095798983,10.01942074,164.37,164.32,10.01942074]
[1754095799165,10.01942074,164.37,164.32,16.7951072]
[1754095799356,26.27,164.39,164.33,55.88942074]
[1754095799682,36.28942074,164.39,164.33,55.88942074]
[1754095799874,0.1,164.4,164.34,0.69]
[1754095800067,0.1,164.4,164.35,55.17942074]
[1754095800385,0.1,164.4,164.36,0.69]
[1754095800596,0.1,164.4,164.32,21.29990262]
[1754095800597,0.1,164.4,164.38,10.01942074]
[1754095800767,0.1,164.4,164.37,45.91]
[1754095800983,0.1,164.4,164.38,0.67]
[1754095801271,0.1,164.4,164.38,10.68942074]
[1754095801883,0.1,164.4,164.39,55.92942074]
[1754095802360,0.1,164.4,164.39,45.91]
[1754095802687,0.1,164.4,164.39,55.92942074]
[1754095802861,0.1,164.4,164.39,62.01251581]
[1754095803061,0.1,164.4,164.39,45.24]
[1754095803486,0.1,164.4,164.39,62.01251581]
[1754095805193,0.1,164.41,164.39,151.61251581]
[1754095805373,0.1,164.41,164.4,20.70884148]
[1754095805696,1e-08,164.41,164.4,37.49352545]
[1754095806867,1e-08,164.41,164.4,43.57625051]
[1754095809202,1e-08,164.41,164.4,6.75272506]
[1754095809406,1e-08,164.41,164.4,16.7721458]
[1754095809574,1e-08,164.41,164.4,61.9121458]
[1754095810187,3.56205232,164.42,164.41,16.78468397]
[1754095810398,1e-08,164.42,164.41,27.47410471]
[1754095811086,0.03,164.43,164.42,22.86666912]
[1754095811406,10.01942074,164.52,164.42,21.95694804]
[1754095811580,0.27,164.5,164.46,10.01942074]
[1754095811777,10.28942074,164.5,164.47,45.14]
[1754095812385,0.27,164.49,164.47,45.14]
[1754095812904,0.27,164.51,164.47,45.14]
[1754095813091,0.27,164.5,164.47,45.14]
[1754095813985,6.34840042,164.52,164.47,45.14]
[1754095814292,10.28942074,164.51,164.47,45.14]
[1754095814618,10.28942074,164.5,164.47,45.14]
[1754095815512,0.27,164.49,164.47,45.14]
[1754095815696,10.28942074,164.48,164.47,45.14]
[1754095816101,32.34910069,164.5,164.44,55.17942074]
[1754095816284,10.01942074,164.49,164.44,55.17942074]
[1754095816485,0.27,164.49,164.44,55.84942074]
[1754095816784,10.28942074,164.49,164.44,55.84942074]
[1754095816990,10.28942074,164.49,164.44,61.93062716]
[1754095817808,16.36887221,164.49,164.44,45.83]
[1754095818030,10.01942074,164.47,164.36,89.66]
[1754095818188,26.0,164.46,164.41,10.01942074]
[1754095818521,36.01942074,164.46,164.41,55.84942074]
[1754095818924,10.28942074,164.45,164.41,45.16]
[1754095819289,42.37044972,164.45,164.41,45.16]
[1754095819623,10.01942074,164.43,164.41,45.16]
[1754095819831,10.01942074,164.43,164.36,0.06]
[1754095820046,64.06790206,164.45,164.36,0.06]
[1754095820047,10.01942074,164.4,164.36,0.06]
[1754095820222,26.0,164.41,164.36,6.14419486]
[1754095820408,10.01942074,164.39,164.36,0.06]
[1754095820611,10.01942074,164.4,164.36,0.73]
[1754095820907,36.01942074,164.41,164.36,10.74942074]
[1754095821146,10.01942074,164.43,164.37,10.68942074]
[1754095821307,10.01942074,164.43,164.37,55.78942074]
[1754095821707,17.05468397,164.44,164.37,55.78942074]
[1754095822010,10.01942074,164.43,164.38,10.68942074]
[1754095822245,10.01942074,164.43,164.38,10.01942074]
[1754095822541,10.01942074,164.43,164.39,0.67]
[1754095824124,10.01942074,164.44,164.4,0.67]
[1754095824434,10.01942074,164.41,164.37,45.08]
[1754095824607,10.01942074,164.42,164.38,0.67]
[1754095825606,10.01942074,164.43,164.39,0.67]
[1754095826423,10.01942074,164.44,164.4,0.67]
[1754095827237,22.86524891,164.46,164.41,10.68942074]
[1754095827238,10.01942074,164.46,164.41,10.68942074]
[1754095827445,10.01942074,164.46,164.42,0.67]
[1754095828645,6.35041455,164.47,164.38,89.6]
[1754095828646,10.01942074,164.44,164.38,95.68310578]
[1754095828822,10.01942074,164.44,164.39,10.68942074]
[1754095829023,6.08041455,164.47,164.4,10.68942074]
[1754095829024,10.01942074,164.45,164.4,10.68942074]
[1754095829220,10.01942074,164.45,164.41,0.67]
[1754095829424,10.01942074,164.46,164.42,0.67]
[1754095829665,26.0,164.48,164.45,10.01942074]
[1754095829946,5.10736696,164.52,164.47,10.01942074]
[1754095830151,0.1,164.53,164.5,10.01942074]
[1754095830365,0.1,164.53,164.48,46.97]
[1754095830547,0.1,164.53,164.49,0.69]
[1754095831022,0.1,164.53,164.52,10.01942074]
[1754095831220,0.1,164.53,164.52,47.05]
[1754095831436,0.1,164.53,164.52,57.06942074]
[1754095831636,0.1,164.53,164.52,63.14770909]
[1754095831956,0.1,164.53,164.52,53.12828835]
[1754095832118,0.1,164.53,164.52,63.14770909]
[1754095833454,4.14859533,164.54,164.52,63.14770909]
[1754095833625,4.14859533,164.54,164.53,6.76791892]
[1754095833823,4.14859533,164.54,164.53,63.20733966]
[1754095834127,4.14859533,164.54,164.53,56.43942074]
[1754095834318,4.14859533,164.54,164.53,63.20733966]
[1754095834739,4.14859533,164.54,164.53,53.18791892]
[1754095834961,4.14859533,164.54,164.53,64.19128403]
[1754095835168,4.14859533,164.54,164.53,64.88128403]
[1754095835674,4.14859533,164.54,164.53,70.95920295]
[1754095836560,1e-08,164.54,164.53,87.74388692]
[1754095836755,0.1,164.57,164.56,26.0]
[1754095836955,0.1,164.57,164.56,72.46]
[1754095837167,0.1,164.57,164.56,90.90128403]
[1754095837760,0.1,164.57,164.56,46.46]
[1754095838164,0.1,164.57,164.56,46.44]
[1754095838464,0.1,164.57,164.54,17.75128403]
[1754095838687,18.12128403,164.57,164.54,46.42]
[1754095838993,18.02128403,164.56,164.52,46.42]
[1754095839383,0.27,164.55,164.51,17.751285]
[1754095839576,18.02128403,164.54,164.51,17.751285]
[1754095840104,18.02128403,164.54,164.5,46.42]
[1754095840307,0.1,164.57,164.51,18.44128403]
[1754095840602,17.85128403,164.57,164.51,18.44128403]
[1754095840898,17.85128403,164.57,164.53,17.75128403]
[1754095840899,0.1,164.57,164.53,17.75128403]
[1754095841108,0.37,164.57,164.51,0.69]
[1754095841270,18.02128403,164.56,164.52,46.36]
[1754095841472,17.75128403,164.53,164.47,18.262061]
[1754095841696,17.75128403,164.55,164.49,23.83068095]
[1754095841997,40.6128639,164.56,164.51,17.75128403]
[1754095842184,17.75128403,164.56,164.51,18.44128403]
[1754095842702,0.1,164.57,164.54,17.75128403]
[1754095843203,17.85128403,164.57,164.52,46.32]
[1754095843374,18.12128403,164.57,164.52,64.07128403]
[1754095843817,0.1,164.57,164.53,17.75128403]
[1754095844100,0.1,164.57,164.53,18.44128403]
[1754095844703,0.1,164.57,164.54,18.44128403]
[1754095845878,17.85128403,164.57,164.53,46.3]
[1754095846082,0.1,164.57,164.53,64.74128403]
[1754095846283,0.1,164.57,164.54,0.69]
[1754095846478,0.1,164.57,164.55,0.69]
[1754095847206,0.1,164.57,164.53,46.3]
[1754095847383,0.1,164.57,164.56,18.44128403]
[1754095847699,0.1,164.57,164.56,0.69]
[1754095848002,0.1,164.57,164.54,46.24]
[1754095848188,0.1,164.57,164.55,0.69]
[1754095848705,0.1,164.57,164.56,0.69]
[1754095849072,0.1,164.57,164.56,18.44128403]
[1754095849280,0.1,164.57,164.56,0.69]
[1754095849500,0.1,164.57,164.56,18.44128403]
[1754095849904,0.1,164.57,164.56,0.69]
[1754095850291,0.1,164.57,164.56,24.51809491]
[1754095852207,0.1,164.57,164.54,0.69]
[1754095852502,0.1,164.57,164.56,63.89128403]
[1754095852705,0.1,164.57,164.56,64.58128403]
[1754095853401,42.88468397,164.65,164.56,81.365968]
[1754095853402,0.1,164.65,164.56,81.365968]
[1754095853709,0.1,164.65,164.61,17.75128403]
[1754095853877,0.1,164.65,164.61,63.89128403]
[1754095854078,0.1,164.65,164.62,6.07459603]
[1754095854280,0.1,164.65,164.61,52.90493194]
[1754095854507,0.1,164.65,164.61,70.65621597]
[1754095854683,0.1,164.65,164.62,0.69]
[1754095854879,0.1,164.65,164.63,18.44128403]
[1754095855181,0.1,164.65,164.63,0.69]
[1754095855499,0.1,164.65,164.64,18.44128403]
[1754095856388,0.1,164.65,164.64,24.51514214]
[1754095856798,0.1,164.65,164.64,52.90385811]
[1754095857197,0.1,164.65,164.64,70.65514214]
[1754095857399,0.1,164.65,164.64,52.90385811]
[1754095857599,0.1,164.65,164.64,70.65514214]
[1754095858619,0.1,164.65,164.64,24.51514214]
[1754095858825,0.1,164.65,164.64,70.59514214]
[1754095859120,0.1,164.65,164.64,24.51514214]
[1754095859295,0.1,164.65,164.64,70.61514214]
[1754095860419,0.1,164.65,164.64,52.86385811]
[1754095860589,0.1,164.65,164.64,0.72]
[1754095860921,0.1,164.65,164.64,46.08]
[1754095862419,0.1,164.65,164.59,11.083272]
[1754095862604,11.08327204,164.63,164.59,46.14]
[1754095862815,17.74376132,164.62,164.59,46.86]
[1754095863119,17.74376132,164.62,164.59,46.14]
[1754095863937,17.74376132,164.61,164.59,46.14]
[1754095864122,0.27,164.62,164.59,46.14]
[1754095864543,0.27,164.62,164.5,15.25736897]
[1754095864544,26.0,164.59,164.5,15.25736897]
[1754095864713,17.74376132,164.6,164.54,17.74376132]
[1754095864908,6.07388619,164.64,164.59,17.74376132]
[1754095865117,23.81764751,164.64,164.59,18.46376132]
[1754095865434,43.84376132,164.65,164.6,18.46376132]
[1754095865808,17.74376132,164.64,164.59,17.74376132]
[1754095866102,43.84376132,164.65,164.6,18.46376132]
[1754095866331,26.1,164.65,164.6,18.46376132]
[1754095866535,50.1873281,164.65,164.58,46.9]
[1754095866709,26.1,164.65,164.6,17.74376132]
[1754095866919,0.1,164.65,164.63,17.74376132]
[1754095867114,0.1,164.65,164.62,17.74376132]
[1754095867310,0.1,164.65,164.62,18.46376132]
[1754095867543,0.1,164.65,164.63,18.46376132]
[1754095867711,0.1,164.65,164.64,17.74376132]
[1754095867903,0.1,164.65,164.64,64.68376132]
[1754095868139,0.1,164.65,164.64,46.94]
[1754095868406,0.1,164.65,164.64,64.68376132]
[1754095868606,0.1,164.65,164.64,46.22]
[1754095868804,0.1,164.65,164.64,70.75761943]
[1754095871540,0.1,164.65,164.64,53.01385811]
[1754095871723,0.1,164.65,164.64,70.75761943]
[1754095872724,0.1,164.65,164.64,6.79385811]
[1754095873046,0.1,164.65,164.64,70.63761943]
[1754095874626,0.1,164.65,164.62,17.743762]
[1754095874822,0.1,164.65,164.64,17.74376132]
[1754095875338,0.1,164.65,164.64,35.24844529]
[1754095876116,1e-08,164.65,164.64,35.24844529]
[1754095876322,1e-08,164.65,164.64,52.99220661]
[1754095876738,1e-08,164.65,164.64,41.3223034]
[1754095877147,1e-08,164.65,164.64,23.57854208]
[1754095877324,1e-08,164.65,164.64,41.3223034]